{"text_format":"3","workbook":"xlsx","n_sheets":2,"sheets":["Registrazione RSVP","Riepilogo RSVP"],"not_rendered":{"charts":2,"images":2,"defined_names":8},"read":"whole","date_system":"1900"}

{"sheet":"Registrazione RSVP","index":0,"n_rows":21,"n_cols":16,"rows_kept":21}
[]
[]
[]
[]
[{"$nulls":4},"Registrazione partecipazioni di matrimonio"]
[]
[{"$f":"TODAY()+283","v":"2013-07-07"},{"$nulls":3},"NOME OSPITE","INVIATO?","RSVP","PERSONE","OSPITE","RELAZIONE","INDIRIZZO","CITTÀ","PROVINCIA","CAP","TELEFONO","Contattare tramite posta elettronica"]
[{"$nulls":4},"Giuseppe Russo","Sì","Sì",1,"Sposa","Fratello","Via Mercoledì 123","Roma","RM",12345,5415550100,"prova@example.com"]
[{"$nulls":4},"Angela Barbariol","Sì","No",3,"Sposa","Amico","Via Giovedì 78","Torino","TO",23456,5415550101,"prova@example.com"]
[{"$f":"DataMatrimonio-TODAY()","v":283},{"$nulls":3},"Fernando Caro","Sì","Sì",1,"Altro","Amico","Via Venerdì 90","Modena","MO",34567,5415550102,"prova@example.com"]
[{"$nulls":4},"Davide Ruspini","Sì","No",2,"Sposo","Amico","Via Lunedì 123","Modena","MO",45678,5415550103,"prova@example.com"]
[{"$nulls":4},"Elena Nicolello","Sì","Sì",2,"Sposo","Amico","Via Sabato 89","Reggio Calabria","RC",56789,5415550104,"prova@example.com"]
[{"$nulls":4},"Aldo Messina","Sì",null,null,"Altro","Amico","Piazza Lunedì 3","Savona","PC",67890,5415550105,"prova@example.com"]
[{"$f":"COUNTIF(tblInviti[RSVP],\"Sì\")","v":6},{"$nulls":3},"Barbara Orioli","Sì","Sì",2,"Sposo","Amico","Vicolo Lungo 67","Roma","RM",78901,5415550106,"prova@example.com"]
[{"$nulls":4},"Loretta Luppi","Sì","No",1,"Altro","Amico","Piazza Grande 12","Piacenza","RM",89012,5415550107,"prova@example.com"]
[{"$nulls":4},"Elisabetta Scotti","Sì","Sì",4,"Sposa","Amico","Via Martedì 56","Savona","PC",54321,5415550108,"prova@example.com"]
[{"$f":"tblInviti[[#Totals],[RSVP]]-TotalePartecipanti","v":3},{"$nulls":3},"Adamo Luciani","Sì","Sì",2,"Sposa","Amico","Viale Domenica 456","Latina","LT",65432,5415550109,"prova@example.com"]
[{"$nulls":4},"Antonio Russo","Sì",null,null,"Sposo","Fratello","Via Larga 2345","Roma","RM",76543,5415550110,"prova@example.com"]
[{"$nulls":4},"TOTALI:",{"$f":"SUBTOTAL(103,tblInviti[INVIATO?])","v":11},{"$f":"SUBTOTAL(103,tblInviti[RSVP])","v":9},{"$f":"SUBTOTAL(109,tblInviti[PERSONE])","v":18}]
[]
[{"$f":"tblInviti[[#Totals],[INVIATO?]]-A17-TotalePartecipanti","v":2}]

{"sheet":"Riepilogo RSVP","index":1,"n_rows":19,"n_cols":16,"rows_kept":19,"merged":[[7,4,9,4],[12,4,14,4]]}
[]
[]
[]
[]
[{"$nulls":4},"riepilogo RSVP",{"$nulls":10},"note"]
[]
[{"$f":"DataMatrimonio","v":"2013-07-07"}]
[{"$nulls":4},"Sì",null,"ALTRO",{"$f":"SUMPRODUCT((tblInviti[OSPITE]=G8)*(tblInviti[RSVP]=$E$8))","v":1},{"$f":"tblInviti[[#Totals],[INVIATO?]]","v":11}]
[{"$nulls":6},"SPOSO",{"$f":"SUMPRODUCT((tblInviti[OSPITE]=G9)*(tblInviti[RSVP]=$E$8))","v":2},{"$f":"tblInviti[[#Totals],[INVIATO?]]","v":11}]
[{"$nulls":6},"SPOSA",{"$f":"SUMPRODUCT((tblInviti[OSPITE]=G10)*(tblInviti[RSVP]=$E$8))","v":3},{"$f":"tblInviti[[#Totals],[INVIATO?]]","v":11}]
[]
[]
[{"$nulls":4},"No",null,"ALTRO",{"$f":"SUMPRODUCT((tblInviti[OSPITE]=G13)*(tblInviti[RSVP]=$E$13))","v":1},{"$f":"tblInviti[[#Totals],[INVIATO?]]","v":11}]
[{"$nulls":6},"SPOSO",{"$f":"SUMPRODUCT((tblInviti[OSPITE]=G14)*(tblInviti[RSVP]=$E$13))","v":1},{"$f":"tblInviti[[#Totals],[INVIATO?]]","v":11}]
[{"$nulls":6},"SPOSA",{"$f":"SUMPRODUCT((tblInviti[OSPITE]=G15)*(tblInviti[RSVP]=$E$13))","v":1},{"$f":"tblInviti[[#Totals],[INVIATO?]]","v":11}]
[]
[{"$f":"COUNTIF(tblInviti[RSVP],\"Yes\")","v":0}]
[{"$f":"tblInviti[[#Totals],[RSVP]]-TotalePartecipanti","v":3}]
[{"$f":"tblInviti[[#Totals],[INVIATO?]]-A18-TotalePartecipanti","v":2}]